bitfinex/quotes_SOLUSD_20240613
["timestamp","ask_amount","ask_price","bid_price","bid_amount"]
[1718273260725,8.43,151.0,150.94,8.43]
[1718273261135,20.0,151.01,150.94,8.43]
[1718273261342,8.43,150.99,150.94,8.43]
[1718273262710,8.43,150.97,150.93,15.2993]
[1718273262905,20.0,151.01,150.93,15.2993]
[1718273263208,0.17,151.02,150.93,15.2993]
[1718273263209,8.43,150.96,150.93,15.2993]
[1718273266738,8.43,150.95,150.89,15.5794]
[1718273267034,8.43,150.95,150.9,28.43]
[1718273267627,8.43,150.95,150.84,97.85467568]
[1718273267628,15.0148,150.94,150.83,5.2605376]
[1718273267826,8.43,150.88,150.82,8.43]
[1718273268139,8.43,150.88,150.81,15.0539]
[1718273268328,8.43,150.86,150.81,15.0539]
[1718273268522,8.43,150.86,150.81,23.4839]
[1718273269624,8.43,150.86,150.81,15.0539]
[1718273270043,8.43,150.86,150.81,23.4839]
[1718273270336,8.43,150.85,150.81,15.0539]
[1718273271034,25.32,150.91,150.81,15.0539]
[1718273271241,20.0,150.9,150.81,15.0539]
[1718273273447,26.88534584,150.9,150.81,15.0539]
[1718273274727,26.88534584,150.9,150.82,0.17]
[1718273278629,0.17,150.89,150.81,15.0539]
[1718273278940,0.51,150.89,150.81,15.0539]
[1718273280438,25.49,150.88,150.81,15.0539]
[1718273280636,20.0,150.87,150.81,15.0539]
[1718273280837,0.51,150.89,150.81,15.0539]
[1718273283374,52.20534584,150.9,150.81,15.0539]
[1718273283663,26.88534584,150.9,150.82,6.6588]
[1718273284445,20.0,150.9,150.82,6.6588]
[1718273284648,6.91390886,150.92,150.82,6.6588]
[1718273284860,20.0,150.91,150.82,6.6588]
[1718273285244,6.91390886,150.92,150.83,0.17]
[1718273285449,270.6336,150.95,150.83,20.68]
[1718273285659,26.913303,150.94,150.84,15.4655]
[1718273285866,6.913303,150.94,150.85,0.17]
[1718273287249,20.0,150.93,150.85,0.17]
[1718273288552,20.0,150.93,150.85,0.34]
[1718273289846,25.32,150.97,150.86,0.17]
[1718273290154,26.91252398,150.96,150.86,0.51]
[1718273290344,26.91252398,150.96,150.88,6.3264]
[1718273290754,26.91252398,150.96,150.89,16.5646]
[1718273290755,6.91252398,150.96,150.89,16.5646]
[1718273290968,8.43,150.96,150.9,8.43]
[1718273291871,254.3,151.01,150.91,8.43]
[1718273292066,8.43,150.96,150.91,8.43]
[1718273292958,6.91090203,150.99,150.89,16.5646]
[1718273293273,20.0,150.98,150.89,16.5646]
[1718273293947,0.34,150.97,150.89,16.5646]
[1718273294265,0.17,150.96,150.89,16.5646]
[1718273294486,25.29,150.94,150.85,16.1842]
[1718273294845,20.0,150.93,150.85,16.1842]
[1718273296466,0.34,150.92,150.85,16.1842]
[1718273297152,20.0,150.93,150.85,16.1842]
[1718273298072,0.17,150.96,150.85,16.1842]
[1718273298376,20.68,150.96,150.85,16.1842]
[1718273302397,6.91406431,150.95,150.85,16.1842]
[1718273302561,20.0,150.94,150.85,16.1842]
[1718273304676,20.0,150.94,150.86,0.34]
[1718273304852,20.0,150.94,150.85,16.3542]
[1718273305855,20.0,150.94,150.86,0.17]
[1718273306078,25.29,150.97,150.86,20.68]
[1718273306383,20.0,150.96,150.86,20.68]
[1718273310297,20.0,150.96,150.86,20.17]
[1718273310466,20.0,150.96,150.85,16.1842]
[1718273311078,0.51,150.95,150.85,16.1842]
[1718273316892,8.44,150.9,150.85,24.6242]
[1718273320206,8.44,150.89,150.85,16.1842]
[1718273320498,8.44,150.88,150.85,16.1842]
[1718273320799,8.44,150.87,150.85,16.1842]
[1718273322705,8.44,150.88,150.85,16.1842]
[1718273324701,0.34,150.93,150.85,16.1842]
[1718273324991,8.44,150.88,150.85,16.1842]
[1718273325173,0.17,150.92,150.85,16.1842]
[1718273325174,8.44,150.87,150.85,16.1842]
[1718273326083,8.44,150.87,150.82,8.44]
[1718273326278,8.44,150.84,150.81,16.2458]
[1718273328398,15.35158261,150.88,150.81,16.2458]
[1718273328399,8.44,150.83,150.81,16.2458]
[1718273328584,8.44,150.82,150.81,16.2458]
[1718273328979,8.44,150.82,150.77,16.2933]
[1718273329288,8.44,150.8,150.77,16.2933]
[1718273330412,8.44,150.81,150.77,16.2933]
[1718273331695,8.44,150.8,150.77,16.2933]
[1718273333083,8.44,150.79,150.77,16.2933]
[1718273333994,8.44,150.79,150.76,0.8079495]
[1718273334396,8.44,150.77,150.76,0.8079495]
[1718273334781,8.44,150.78,150.76,0.8079495]
[1718273340495,0.17,150.82,150.76,0.8079495]
[1718273340694,8.44,150.79,150.76,0.8079495]
[1718273340910,8.44,150.78,150.76,0.8079495]
[1718273344520,6.90782538,150.83,150.76,0.8079495]
[1718273344690,20.0,150.82,150.76,0.8079495]
[1718273344895,8.44,150.79,150.76,0.8079495]
[1718273345310,20.0,150.82,150.76,0.8079495]
[1718273345513,8.44,150.79,150.76,0.8079495]
[1718273351221,20.0,150.82,150.76,0.8079495]
[1718273351527,8.44,150.81,150.76,0.8079495]
[1718273351732,8.44,150.81,150.76,9.2479495]
[1718273351908,8.44,150.81,150.76,0.8079495]
[1718273352103,8.44,150.8,150.76,0.8079495]
[1718273352718,8.44,150.79,150.76,0.8079495]
[1718273354521,6.88790028,150.85,150.76,0.8079495]
[1718273354725,8.44,150.79,150.76,0.8079495]
[1718273358702,8.44,150.8,150.76,0.8079495]
[1718273360414,0.17,150.84,150.76,0.8079495]
[1718273360729,8.44,150.79,150.76,0.8079495]
[1718273361109,8.44,150.78,150.76,0.8079495]
[1718273361513,8.44,150.77,150.76,0.8079495]
[1718273362012,8.44,150.78,150.76,0.8079495]
[1718273364119,0.17,150.82,150.76,0.8079495]
[1718273364433,8.44,150.78,150.76,0.8079495]
[1718273364627,20.0,150.82,150.76,0.8079495]
[1718273364826,8.44,150.79,150.76,0.8079495]
[1718273365411,20.0,150.82,150.76,0.8079495]
[1718273365611,8.44,150.79,150.76,0.8079495]
[1718273367135,6.88670565,150.83,150.76,0.8079495]
[1718273367323,8.44,150.79,150.76,0.8079495]
[1718273368329,6.88670565,150.83,150.76,0.8079495]
[1718273368532,8.44,150.79,150.76,0.8079495]
[1718273374755,6.88670565,150.83,150.76,0.8079495]
[1718273374952,8.44,150.79,150.76,0.8079495]
[1718273376029,8.44,150.78,150.76,0.8079495]
[1718273376426,8.44,150.79,150.76,0.8079495]
[1718273376851,6.88670565,150.83,150.76,0.8079495]
[1718273377033,8.44,150.79,150.76,0.8079495]
[1718273380434,6.88670565,150.83,150.76,0.8079495]
[1718273380634,8.44,150.79,150.76,0.8079495]
[1718273380861,8.44,150.78,150.76,0.8079495]
[1718273384755,8.44,150.79,150.76,0.8079495]
[1718273394548,6.88670565,150.83,150.76,0.8079495]
[1718273394751,8.44,150.8,150.76,0.8079495]
[1718273400183,6.88670565,150.83,150.76,0.8079495]
[1718273400372,8.44,150.8,150.76,0.8079495]
[1718273400579,8.44,150.79,150.76,0.8079495]
[1718273401982,6.88670565,150.83,150.76,0.8079495]
[1718273402283,8.44,150.8,150.76,0.8079495]
[1718273405783,8.44,150.79,150.76,0.8079495]
[1718273406085,8.44,150.77,150.76,0.8079495]
[1718273406658,24.8973,150.77,150.76,0.8079495]
[1718273406856,24.8973,150.77,150.66,16.0235]
[1718273406857,44.8973,150.77,150.66,16.0235]
[1718273407083,8.44,150.7,150.66,16.0235]
[1718273408263,16.4573,150.77,150.66,16.0235]
[1718273408459,8.44,150.73,150.68,8.44]
[1718273409080,8.44,150.72,150.67,8.44]
[1718273409280,16.4573,150.77,150.66,24.4635]
[1718273409479,8.44,150.72,150.67,20.0]
[1718273410266,8.44,150.72,150.67,28.44]
[1718273412493,8.44,150.72,150.67,8.44]
[1718273413591,8.44,150.72,150.66,16.0235]
[1718273413792,8.44,150.72,150.67,8.44]
[1718273414673,8.44,150.73,150.67,8.44]
[1718273414886,8.44,150.73,150.67,0.17]
[1718273415088,8.44,150.73,150.67,9.12]
[1718273415278,16.4573,150.77,150.67,9.12]
[1718273415479,8.44,150.73,150.68,8.44]
[1718273415684,8.44,150.73,150.69,45.0]
[1718273416192,16.4573,150.77,150.69,45.0]
[1718273416404,16.653,150.81,150.71,8.44]
[1718273416572,100.0,150.86,150.75,8.44]
[1718273416573,21.92,150.86,150.75,8.44]
[1718273416775,8.44,150.8,150.75,8.44]
[1718273417087,8.44,150.76,150.72,16.2258]
[1718273417279,8.44,150.76,150.73,45.0]
[1718273417595,8.44,150.74,150.68,15.6421]
[1718273417775,8.44,150.72,150.69,45.0]
[1718273417985,8.44,150.73,150.69,45.0]
[1718273418484,8.44,150.73,150.68,15.6421]
[1718273418683,8.44,150.73,150.68,24.0821]
[1718273419383,8.44,150.73,150.68,15.6421]
[1718273419589,15.6121,150.79,150.69,8.44]
[1718273419793,8.44,150.75,150.7,45.0]
[1718273420683,8.44,150.74,150.7,45.0]
[1718273420883,8.44,150.73,150.7,45.0]
[1718273421089,8.44,150.73,150.68,24.0821]
[1718273421090,8.44,150.73,150.69,45.0]
[1718273423098,0.17,150.78,150.69,53.44]
[1718273423099,8.44,150.75,150.69,53.44]
[1718273423902,15.6121,150.79,150.69,53.44]
[1718273424112,20.0,150.78,150.7,8.44]
[1718273424326,13.19585984,150.8,150.72,8.44]
[1718273424327,6.88795984,150.8,150.72,8.44]
[1718273424606,16.5837,150.83,150.74,8.44]
[1718273424790,8.44,150.8,150.75,8.44]
[1718273425116,8.44,150.8,150.76,45.0]
[1718273425482,8.44,150.79,150.75,45.0]
[1718273425677,8.44,150.78,150.75,45.0]
[1718273426806,8.44,150.79,150.75,45.0]
[1718273428205,8.44,150.79,150.74,8.44]
[1718273428405,0.17,150.82,150.73,8.44]
[1718273428406,8.44,150.78,150.73,8.44]
[1718273428727,8.44,150.78,150.72,8.44]
[1718273429220,8.44,150.78,150.7,16.4492]
[1718273429412,8.44,150.78,150.72,8.44]
[1718273429624,8.44,150.77,150.72,8.44]
[1718273430839,8.44,150.77,150.73,45.0]
[1718273431830,8.44,150.78,150.73,45.0]
[1718273432040,0.17,150.82,150.73,53.44]
[1718273432198,8.44,150.78,150.73,53.44]
[1718273432709,8.44,150.79,150.73,53.44]
[1718273432910,8.44,150.79,150.74,8.44]
[1718273433110,8.44,150.79,150.75,45.0]
[1718273433826,8.44,150.8,150.75,45.0]
[1718273435327,8.44,150.79,150.75,45.0]
[1718273436730,23.47013843,150.83,150.75,45.0]
[1718273436922,269.4184,150.87,150.76,23.8836]
[1718273437116,8.44,150.82,150.77,45.0]
[1718273437736,6.88723323,150.86,150.78,8.44]
[1718273438030,8.44,150.83,150.79,45.0]
[1718273439018,8.44,150.83,150.78,45.0]
[1718273440239,8.44,150.83,150.78,53.44]
[1718273440630,8.44,150.83,150.78,45.0]
[1718273441340,8.44,150.82,150.78,45.0]
[1718273442818,6.88723323,150.86,150.76,15.4436]
[1718273443024,8.44,150.8,150.76,15.4436]
[1718273443544,8.44,150.8,150.74,6.5488]
[1718273443842,8.44,150.79,150.74,6.5488]
[1718273444244,8.44,150.79,150.74,14.9888]
[1718273444420,0.17,150.85,150.75,0.17]
[1718273444743,8.44,150.81,150.76,8.44]
[1718273444940,8.44,150.81,150.77,45.0]
[1718273446520,7.05723323,150.86,150.77,45.0]
[1718273446723,20.34,150.85,150.77,45.0]
[1718273447016,20.0,150.85,150.77,53.44]
[1718273447238,8.44,150.82,150.77,53.44]
[1718273448131,8.44,150.83,150.77,53.44]
[1718273448533,6.88723323,150.86,150.77,53.44]
[1718273448739,8.44,150.83,150.77,53.44]
[1718273449126,6.88723323,150.86,150.78,16.0519]
[1718273449450,8.44,150.83,150.79,45.0]
[1718273451050,8.44,150.82,150.79,45.0]
[1718273451751,8.44,150.83,150.79,45.0]
[1718273453731,8.44,150.81,150.74,22.4979]
[1718273453969,8.44,150.81,150.75,8.44]
[1718273455029,8.44,150.8,150.76,45.0]
[1718273455234,8.44,150.79,150.75,45.0]
[1718273456359,8.44,150.79,150.74,30.9379]
[1718273457480,6.89172882,150.84,150.74,15.9491]
[1718273457769,8.44,150.78,150.74,15.9491]
[1718273457940,8.44,150.78,150.75,45.0]
[1718273458570,8.44,150.77,150.7,22.4485]
[1718273458747,8.44,150.77,150.71,20.0]
[1718273459070,8.44,150.77,150.72,8.44]
[1718273459362,8.44,150.78,150.73,8.44]
[1718273459773,8.44,150.78,150.71,20.0]
[1718273460061,22.8795,150.81,150.72,45.0]
[1718273460062,8.44,150.76,150.72,45.0]
[1718273460271,8.44,150.77,150.72,53.44]
[1718273460440,8.44,150.78,150.72,53.44]
[1718273460839,8.44,150.78,150.72,45.0]
[1718273461051,8.44,150.78,150.72,53.44]
[1718273461848,8.44,150.78,150.72,45.0]
[1718273462560,8.44,150.78,150.72,53.44]
[1718273463971,0.17,150.79,150.72,53.44]
[1718273464154,8.44,150.78,150.72,45.0]
[1718273464355,8.44,150.77,150.72,45.0]
[1718273464573,8.44,150.75,150.71,45.0]
[1718273465686,8.44,150.73,150.66,15.8604]
[1718273465975,8.44,150.7,150.66,15.8604]
[1718273466967,8.44,150.7,150.67,45.0]
[1718273470164,8.44,150.68,150.62,15.2693]
[1718273470377,8.44,150.68,150.62,23.7093]
[1718273470554,8.44,150.68,150.63,8.44]
[1718273470967,0.17,150.74,150.63,8.44]
[1718273471276,8.44,150.69,150.62,15.2693]
[1718273471586,8.44,150.68,150.62,15.2693]
[1718273471764,8.44,150.68,150.63,8.44]
[1718273471964,8.44,150.68,150.62,23.7093]
[1718273472664,0.17,150.7,150.62,23.7093]
[1718273472665,8.44,150.67,150.62,15.2693]
[1718273473177,8.44,150.67,150.61,0.8079495]
[1718273473380,8.44,150.67,150.61,9.2479495]
[1718273474178,8.44,150.67,150.61,0.8079495]
[1718273474366,8.44,150.67,150.61,9.2479495]
[1718273474662,8.44,150.67,150.62,45.0]
[1718273477735,8.44,150.66,150.61,0.8079495]
[1718273478013,8.44,150.65,150.61,0.8079495]
[1718273479715,0.34,150.69,150.61,0.8079495]
[1718273480017,29.0514335,150.7,150.61,0.8079495]
[1718273480490,8.44,150.66,150.61,0.8079495]
[1718273481908,0.17,150.69,150.61,0.8079495]
[1718273482111,8.44,150.66,150.61,0.8079495]
[1718273482412,0.68,150.69,150.61,0.8079495]
[1718273482413,8.44,150.64,150.61,0.8079495]
[1718273482619,8.44,150.63,150.61,0.8079495]
[1718273482917,8.44,150.64,150.61,0.8079495]
[1718273483203,8.44,150.65,150.61,0.8079495]
[1718273484209,0.34,150.68,150.61,0.8079495]
[1718273484502,8.44,150.65,150.61,0.8079495]
[1718273486303,0.34,150.67,150.61,0.8079495]
[1718273486611,26.89104149,150.69,150.63,8.44]
[1718273486830,8.44,150.68,150.64,45.0]
[1718273487119,6.89104149,150.69,150.64,45.0]
[1718273487328,8.44,150.7,150.65,8.44]
[1718273487710,6.89034802,150.71,150.65,8.44]
[1718273487911,8.44,150.7,150.65,8.44]
[1718273488513,8.44,150.69,150.64,53.44]
[1718273492300,8.44,150.69,150.64,45.0]
[1718273492503,8.44,150.66,150.61,0.8079495]
[1718273492701,8.44,150.65,150.61,0.8079495]
[1718273493327,8.44,150.66,150.61,0.8079495]
[1718273494102,0.17,150.67,150.61,54.2479495]
[1718273494303,8.44,150.66,150.61,54.2479495]
[1718273494805,8.78,150.67,150.61,54.2479495]
[1718273495321,0.17,150.68,150.62,8.44]
[1718273495524,0.17,150.68,150.63,45.0]
[1718273495525,8.44,150.68,150.63,45.0]
[1718273495722,0.17,150.7,150.63,45.0]
[1718273495911,8.44,150.68,150.63,53.44]
[1718273496113,8.44,150.67,150.63,45.0]
[1718273496611,8.44,150.68,150.63,45.0]
[1718273497908,0.68,150.7,150.63,45.0]
[1718273498114,8.44,150.67,150.62,45.0]
[1718273498928,6.88692931,150.69,150.65,8.44]
[1718273499116,8.44,150.71,150.65,8.44]
[1718273499315,8.44,150.71,150.66,45.0]
[1718273499513,8.44,150.71,150.66,53.44]
[1718273500225,6.89055198,150.72,150.66,53.44]
[1718273500427,6.89055198,150.72,150.66,45.0]
[1718273500610,8.44,150.74,150.69,8.44]
[1718273501131,28.62208085,150.76,150.67,8.44]
[1718273501432,8.44,150.71,150.66,8.44]
[1718273501605,8.44,150.71,150.67,45.0]
[1718273501804,20.0,150.75,150.67,45.0]
[1718273501805,8.44,150.72,150.67,45.0]
[1718273502341,8.44,150.72,150.67,53.44]
[1718273503133,8.44,150.73,150.67,53.44]
[1718273503313,8.44,150.73,150.67,45.0]
[1718273503620,28.62208085,150.76,150.67,45.0]
[1718273503821,8.44,150.75,150.7,8.44]
[1718273504135,6.89188085,150.76,150.71,45.0]
[1718273504329,8.44,150.75,150.71,45.0]
[1718273504930,15.33188085,150.76,150.71,45.0]
[1718273505707,16.3083,150.74,150.62,6.3629]
[1718273505908,8.44,150.7,150.64,8.44]
[1718273506129,0.17,150.71,150.65,8.44]
[1718273506331,8.44,150.7,150.64,8.44]
[1718273506706,8.44,150.7,150.65,8.44]
[1718273508329,8.95,150.71,150.65,8.44]
[1718273508528,8.95,150.71,150.66,45.0]
[1718273508917,0.51,150.71,150.66,45.0]
[1718273509927,20.17,150.73,150.66,45.0]
[1718273510442,0.51,150.74,150.66,45.0]
[1718273510748,0.51,150.73,150.66,45.0]
[1718273510916,0.17,150.72,150.66,45.0]
[1718273511110,0.17,150.71,150.66,45.0]
[1718273511331,0.51,150.71,150.66,45.0]
[1718273511816,7.07274022,150.72,150.66,45.0]
[1718273512019,6.90274022,150.72,150.66,45.0]
[1718273512621,0.17,150.73,150.66,45.0]
[1718273512826,0.51,150.73,150.66,45.0]
[1718273515014,6.89247027,150.74,150.66,45.0]
[1718273516334,0.17,150.77,150.66,45.0]
[1718273516542,6.88680092,150.76,150.66,45.0]
[1718273519239,6.88680092,150.76,150.67,6.0011]
[1718273519427,0.68,150.77,150.68,45.0]
[1718273519627,27.57105217,150.77,150.68,45.0]
[1718273519933,6.89105217,150.77,150.69,15.3598]
[1718273520127,6.89105217,150.77,150.7,45.0]
[1718273521121,0.51,150.76,150.7,45.0]
[1718273521316,0.51,150.76,150.69,15.3598]
[1718273521523,0.34,150.75,150.69,15.3598]
[1718273521839,0.51,150.74,150.69,15.3598]
[1718273522046,0.17,150.74,150.69,15.3598]
[1718273522228,0.34,150.75,150.69,15.3598]
[1718273522429,0.34,150.74,150.69,15.3598]
[1718273522827,0.34,150.74,150.7,45.0]
[1718273525121,0.34,150.74,150.65,16.0059]
[1718273525321,0.34,150.74,150.66,45.0]
[1718273526336,0.17,150.73,150.66,45.0]
[1718273526547,0.34,150.73,150.66,45.0]
[1718273526754,0.17,150.72,150.66,45.0]
[1718273527557,0.17,150.71,150.59,22.7813]
[1718273527733,0.34,150.71,150.6,20.0]
[1718273527927,0.34,150.7,150.6,20.0]
[1718273529256,0.34,150.7,150.61,45.8079495]
[1718273529431,0.34,150.7,150.62,20.0]
[1718273529630,0.34,150.7,150.63,45.0]
[1718273530850,8.46,150.69,150.63,53.46]
[1718273532946,8.46,150.69,150.63,45.0]
[1718273533260,8.46,150.69,150.64,8.46]
[1718273533433,8.46,150.69,150.65,45.0]
[1718273534353,0.34,150.7,150.65,45.0]
[1718273534354,8.8,150.7,150.65,45.0]
[1718273535834,8.46,150.69,150.65,45.0]
[1718273536031,8.46,150.68,150.65,45.0]
[1718273536241,8.46,150.68,150.64,45.0]
[1718273536867,8.46,150.69,150.64,45.0]
[1718273537866,8.46,150.68,150.64,45.0]
[1718273541152,8.46,150.68,150.63,45.0]
[1718273543972,7.23345449,150.7,150.63,45.0]
[1718273544173,8.46,150.68,150.62,53.46]
[1718273544864,8.46,150.68,150.63,8.46]
[1718273545070,8.46,150.68,150.64,45.0]
[1718273545573,8.46,150.68,150.63,45.0]
[1718273546552,8.46,150.68,150.63,53.46]
[1718273548882,8.46,150.68,150.63,45.0]
[1718273549479,8.46,150.67,150.63,45.0]
[1718273549659,8.46,150.66,150.63,45.0]
[1718273549854,8.46,150.66,150.62,45.0]
[1718273550689,0.17,150.69,150.62,45.0]
[1718273550690,8.46,150.65,150.62,45.0]
[1718273551783,8.46,150.65,150.61,45.8079495]
[1718273551966,8.46,150.65,150.62,45.0]
[1718273552162,8.46,150.65,150.61,0.8079495]
[1718273558583,0.17,150.66,150.61,0.8079495]
[1718273558886,8.46,150.65,150.61,0.8079495]
[1718273559289,0.51,150.66,150.61,0.8079495]
[1718273559480,8.46,150.65,150.61,0.8079495]
[1718273561380,0.51,150.66,150.61,0.8079495]
[1718273561587,8.46,150.64,150.61,0.8079495]
[1718273562584,8.46,150.63,150.61,0.8079495]
[1718273563690,8.46,150.64,150.61,0.8079495]
[1718273564469,8.46,150.63,150.61,0.8079495]
[1718273566487,8.46,150.62,150.61,0.8079495]
[1718273567168,8.63,150.62,150.61,0.8079495]
[1718273567373,0.68,150.62,150.61,0.8079495]
[1718273567683,9.14,150.62,150.61,0.8079495]
[1718273567885,8.97,150.62,150.61,0.8079495]
[1718273568076,20.0,150.65,150.61,0.8079495]
[1718273568271,8.46,150.62,150.61,0.8079495]
[1718273570385,0.34,150.64,150.61,0.8079495]
[1718273570687,8.46,150.62,150.61,0.8079495]
[1718273570887,8.63,150.62,150.61,0.8079495]
[1718273571077,9.14,150.62,150.61,0.8079495]
[1718273574499,29.14,150.62,150.61,0.8079495]
[1718273579281,45.638,150.62,150.61,0.8079495]
[1718273580011,36.498,150.62,150.61,0.8079495]
[1718273580196,20.0,150.62,150.61,0.8079495]
[1718273580376,28.46,150.62,150.61,0.8079495]
[1718273582390,29.14,150.62,150.61,0.8079495]
[1718273583797,45.3665,150.62,150.61,0.8079495]
[1718273584309,185.2065,150.62,150.61,0.8079495]
[1718273584514,159.91,150.61,150.47,23.0796]
[1718273584809,190.1965,150.62,150.46,0.8079495]
[1718273584810,8.46,150.5,150.46,0.8079495]
[1718273585195,8.46,150.51,150.46,9.2679495]
[1718273586115,8.46,150.51,150.47,45.0]
[1718273587306,8.46,150.51,150.46,0.8079495]
[1718273587486,8.46,150.49,150.46,0.8079495]
[1718273587691,8.46,150.5,150.46,0.8079495]
[1718273588090,0.68,150.52,150.46,0.8079495]
[1718273588292,8.46,150.5,150.46,0.8079495]
[1718273589212,0.68,150.52,150.46,0.8079495]
[1718273589213,0.68,150.52,150.46,45.8079495]
[1718273589389,8.46,150.5,150.46,45.8079495]
[1718273592014,8.46,150.49,150.46,45.8079495]
[1718273592194,8.46,150.49,150.46,0.8079495]
[1718273592391,0.68,150.52,150.46,0.8079495]
[1718273592603,8.46,150.48,150.46,0.8079495]
[1718273593989,8.46,150.48,150.46,45.8079495]
[1718273594209,20.68,150.52,150.46,45.8079495]
[1718273594592,8.46,150.49,150.46,45.8079495]
[1718273597608,20.68,150.52,150.46,45.8079495]
[1718273597810,296.6,150.56,150.46,54.2679495]
[1718273598118,8.46,150.52,150.47,8.46]
[1718273598293,6.90010636,150.54,150.48,45.0]
[1718273598495,8.46,150.51,150.48,45.0]
[1718273598689,8.46,150.51,150.47,45.0]
[1718273601006,8.46,150.52,150.47,53.46]
[1718273601732,8.46,150.53,150.47,53.46]
[1718273603411,8.46,150.53,150.48,8.46]
[1718273603613,15.2412,150.6,150.5,16.1305]
[1718273603817,8.46,150.58,150.52,8.46]
[1718273604006,8.46,150.58,150.53,53.46]
[1718273604526,8.46,150.59,150.53,53.46]
[1718273605398,8.46,150.58,150.53,45.0]
[1718273605600,8.46,150.57,150.53,45.0]
[1718273605999,22.13882073,150.6,150.53,45.0]
[1718273606000,6.89762073,150.6,150.53,45.0]
[1718273606219,6.89762073,150.6,150.54,8.46]
[1718273606401,15.35762073,150.6,150.55,45.0]
[1718273606797,8.46,150.59,150.55,45.0]
[1718273607625,8.46,150.59,150.54,45.0]
[1718273609108,8.46,150.58,150.54,45.0]
[1718273609526,8.46,150.58,150.53,45.0]
[1718273609728,0.17,150.57,150.53,45.0]
[1718273609944,8.46,150.55,150.5,24.5905]
[1718273610232,8.46,150.54,150.5,16.1305]
[1718273612237,8.46,150.54,150.51,45.0]
[1718273612609,8.46,150.54,150.5,16.1305]
[1718273613209,8.46,150.53,150.5,16.1305]
[1718273613932,8.46,150.54,150.5,16.1305]
[1718273614431,8.46,150.53,150.5,16.1305]
[1718273619948,8.46,150.54,150.5,16.1305]
[1718273620737,15.36479568,150.55,150.51,45.0]
[1718273622447,6.90479568,150.55,150.51,45.0]
[1718273622647,8.46,150.54,150.51,45.0]
[1718273623840,8.46,150.53,150.51,45.0]
[1718273625343,6.90479568,150.55,150.51,45.0]
[1718273625344,8.46,150.54,150.51,45.0]
[1718273626347,6.90479568,150.55,150.51,45.0]
[1718273626556,8.46,150.54,150.51,45.0]
[1718273628847,6.90479568,150.55,150.51,45.0]
[1718273629228,8.46,150.54,150.51,45.0]
[1718273630866,8.46,150.53,150.5,16.1305]
[1718273633061,6.90479568,150.55,150.51,45.0]
[1718273633648,8.46,150.54,150.51,45.0]
[1718273634942,8.46,150.54,150.5,16.1305]